[Event "Titled Tuesday Blitz January 31 Late 2023"]
[White "Paveto, Kevin"]
[Black "Kostiukov, Alexandr"]
[WhiteFideId "173444"]
[BlackFideId "14108100"]
[WhiteElo "2427"]
[BlackElo "2271"]
[Result "1-0"]
[Round "02"]
[TimeControl "180+2"]
[Date "2023.01.31"]
[WhiteClock "0:00:53"]
[BlackClock "0:01:13"]

1. e4 {[%clk 0:03:00]}  c5 {[%clk 0:02:59]} 2. Nf3 {[%clk 0:03:00]}  g6 {[%clk 0:03:00]} 3. d4 {[%clk 0:02:58]}  cxd4 {[%clk 0:03:00]} 4. Nxd4 {[%clk 0:02:59]}  Bg7 {[%clk 0:02:59]} 5. c4 {[%clk 0:02:57]}  Nf6 {[%clk 0:02:58]} 6. Nc3 {[%clk 0:02:57]}  Nc6 {[%clk 0:02:58]} 7. Be3 {[%clk 0:02:58]}  Nxd4 {[%clk 0:02:56]} 8. Bxd4 {[%clk 0:02:53]}  Qa5 {[%clk 0:02:55]} 9. f3 {[%clk 0:02:44]}  O-O {[%clk 0:02:54]} 10. Be2 {[%clk 0:02:44]}  d6 {[%clk 0:02:55]} 11. O-O {[%clk 0:02:43]}  Be6 {[%clk 0:02:55]} 12. Rc1 {[%clk 0:02:41]}  Rfc8 {[%clk 0:02:55]} 13. b3 {[%clk 0:02:41]}  a6 {[%clk 0:02:52]} 14. a4 {[%clk 0:02:30]}  Nd7 {[%clk 0:02:50]} 15. Bxg7 {[%clk 0:02:30]}  Kxg7 {[%clk 0:02:51]} 16. Qd4+ {[%clk 0:02:30]}  Kg8 {[%clk 0:02:46]} 17. Kh1 {[%clk 0:02:22]}  Qb6 {[%clk 0:02:32]} 18. Qxb6 {[%clk 0:02:18]}  Nxb6 {[%clk 0:02:32]} 19. a5 {[%clk 0:02:08]}  Nd7 {[%clk 0:02:32]} 20. Na4 {[%clk 0:02:09]}  Rab8 {[%clk 0:02:29]} 21. f4 {[%clk 0:02:06]}  Nc5 {[%clk 0:02:28]} 22. Nxc5 {[%clk 0:02:02]}  Rxc5 {[%clk 0:02:24]} 23. b4 {[%clk 0:02:03]}  Rc7 {[%clk 0:02:25]} 24. f5 {[%clk 0:02:02]}  Bd7 {[%clk 0:02:15]} 25. Bd3 {[%clk 0:01:47]}  Rbc8 {[%clk 0:02:07]} 26. Rce1 {[%clk 0:01:36]}  e6 {[%clk 0:02:02]} 27. fxg6 {[%clk 0:01:34]}  hxg6 {[%clk 0:02:01]} 28. e5 {[%clk 0:01:18]}  dxe5 {[%clk 0:01:48]} 29. c5 {[%clk 0:01:08]}  Bb5 {[%clk 0:01:39]} 30. Bxb5 {[%clk 0:01:07]}  axb5 {[%clk 0:01:40]} 31. Rxe5 {[%clk 0:01:07]}  Rd8 {[%clk 0:01:39]} 32. Re4 {[%clk 0:01:02]}  Rd2 {[%clk 0:01:35]} 33. h3 {[%clk 0:01:01]}  Rcd7 {[%clk 0:01:35]} 34. Ra1 {[%clk 0:00:59]}  Rd1+ {[%clk 0:01:34]} 35. Rxd1 {[%clk 0:00:58]}  Rxd1+ {[%clk 0:01:34]} 36. Kh2 {[%clk 0:00:59]}  Rb1 {[%clk 0:01:28]} 37. Rd4 {[%clk 0:00:57]}  Kg7 {[%clk 0:01:27]} 38. Rd7 {[%clk 0:00:56]}  Rxb4 {[%clk 0:01:25]} 39. Rxb7 {[%clk 0:00:57]}  Rc4 {[%clk 0:01:24]} 40. a6 {[%clk 0:00:54]}  Ra4 {[%clk 0:01:15]} 41. a7 {[%clk 0:00:52]}  b4 {[%clk 0:01:13]} 42. c6 {[%clk 0:00:53]}  b3 {[%clk 0:01:13]} 43. c7 {[%clk 0:00:53]} 1-0


[Site "https://www.chess.com"]

[Event "Titled Tuesday Blitz January 31 Late 2023"]
[White "OKEKE, Isaac Chukwudalu"]
[Black "Fernandez Guillen, Ernesto J."]
[WhiteFideId "8508526"]
[BlackFideId "3512428"]
[WhiteElo "2155"]
[BlackElo "2477"]
[Result "0-1"]
[Round "02"]
[TimeControl "180+2"]
[Date "2023.01.31"]
[WhiteClock "0:00:03"]
[BlackClock "0:00:23"]

1. e4 {[%clk 0:02:59]}  e5 {[%clk 0:02:58]} 2. Nf3 {[%clk 0:02:59]}  Nc6 {[%clk 0:02:58]} 3. Bb5 {[%clk 0:02:59]}  f5 {[%clk 0:02:59]} 4. d3 {[%clk 0:02:58]}  fxe4 {[%clk 0:02:59]} 5. dxe4 {[%clk 0:02:59]}  Nf6 {[%clk 0:03:00]} 6. Nc3 {[%clk 0:02:58]}  Bb4 {[%clk 0:02:59]} 7. O-O {[%clk 0:02:58]}  Bxc3 {[%clk 0:02:58]} 8. bxc3 {[%clk 0:02:58]}  d6 {[%clk 0:02:59]} 9. Qd3 {[%clk 0:02:55]}  Bg4 {[%clk 0:02:56]} 10. h3 {[%clk 0:02:54]}  Bxf3 {[%clk 0:02:49]} 11. Qxf3 {[%clk 0:02:55]}  O-O {[%clk 0:02:49]} 12. Bc4+ {[%clk 0:02:52]}  Kh8 {[%clk 0:02:49]} 13. Qe2 {[%clk 0:02:36]}  Qe8 {[%clk 0:02:34]} 14. Rb1 {[%clk 0:02:29]}  Rb8 {[%clk 0:02:34]} 15. Bg5 {[%clk 0:02:09]}  Ne7 {[%clk 0:02:17]} 16. f4 {[%clk 0:02:04]}  exf4 {[%clk 0:02:09]} 17. e5 {[%clk 0:01:33]}  dxe5 {[%clk 0:02:09]} 18. Qxe5 {[%clk 0:01:32]}  Ng6 {[%clk 0:02:09]} 19. Qxe8 {[%clk 0:01:31]}  Rfxe8 {[%clk 0:02:10]} 20. Bf7 {[%clk 0:00:52]}  Re5 {[%clk 0:02:00]} 21. h4 {[%clk 0:00:35]}  Ne4 {[%clk 0:01:50]} 22. Bxg6 {[%clk 0:00:26]}  Nxg5 {[%clk 0:01:51]} 23. hxg5 {[%clk 0:00:22]}  hxg6 {[%clk 0:01:52]} 24. Rxf4 {[%clk 0:00:22]}  Rxg5 {[%clk 0:01:52]} 25. Rf7 {[%clk 0:00:23]}  Rc5 {[%clk 0:01:50]} 26. Re1 {[%clk 0:00:21]}  Kh7 {[%clk 0:01:21]} 27. Ree7 {[%clk 0:00:21]}  Rc8 {[%clk 0:01:21]} 28. Rxg7+ {[%clk 0:00:20]}  Kh6 {[%clk 0:01:22]} 29. Rh7+ {[%clk 0:00:20]}  Kg5 {[%clk 0:01:22]} 30. Rh3 {[%clk 0:00:20]}  Rd8 {[%clk 0:01:14]} 31. Rf7 {[%clk 0:00:20]}  Rd1+ {[%clk 0:01:14]} 32. Kh2 {[%clk 0:00:20]}  Rdd5 {[%clk 0:01:07]} 33. Rg3+ {[%clk 0:00:14]}  Kh6 {[%clk 0:01:06]} 34. Rh3+ {[%clk 0:00:14]}  Rh5 {[%clk 0:01:07]} 35. Rf3 {[%clk 0:00:12]}  b6 {[%clk 0:00:59]} 36. g4 {[%clk 0:00:11]}  Rxh3+ {[%clk 0:00:59]} 37. Kxh3 {[%clk 0:00:12]}  Kg5 {[%clk 0:00:59]} 38. Rd3 {[%clk 0:00:12]}  c6 {[%clk 0:00:58]} 39. Re3 {[%clk 0:00:10]}  Rc4 {[%clk 0:00:50]} 40. Re5+ {[%clk 0:00:10]}  Kf4 {[%clk 0:00:50]} 41. Re6 {[%clk 0:00:09]}  Rxc3+ {[%clk 0:00:49]} 42. Kh4 {[%clk 0:00:07]}  g5+ {[%clk 0:00:50]} 43. Kh5 {[%clk 0:00:08]}  Rh3+ {[%clk 0:00:49]} 44. Kg6 {[%clk 0:00:08]}  Kxg4 {[%clk 0:00:50]} 45. Rxc6 {[%clk 0:00:08]}  Kh4 {[%clk 0:00:37]} 46. Rc4+ {[%clk 0:00:04]}  g4 {[%clk 0:00:37]} 47. Kf5 {[%clk 0:00:04]}  Rf3+ {[%clk 0:00:37]} 48. Ke4 {[%clk 0:00:04]}  Rf7 {[%clk 0:00:37]} 49. Rc8 {[%clk 0:00:04]}  g3 {[%clk 0:00:28]} 50. Rh8+ {[%clk 0:00:04]}  Kg4 {[%clk 0:00:28]} 51. Ke3 {[%clk 0:00:04]}  Re7+ {[%clk 0:00:27]} 52. Kd2 {[%clk 0:00:04]}  g2 {[%clk 0:00:25]} 53. Rg8+ {[%clk 0:00:03]}  Kf3 {[%clk 0:00:26]} 54. Kd1 {[%clk 0:00:02]}  Kf2 {[%clk 0:00:26]} 55. Rf8+ {[%clk 0:00:02]}  Kg1 {[%clk 0:00:26]} 56. Rg8 {[%clk 0:00:03]}  Re5 {[%clk 0:00:26]} 57. Kd2 {[%clk 0:00:03]}  Kf2 {[%clk 0:00:26]} 58. Rf8+ {[%clk 0:00:03]}  Kg3 {[%clk 0:00:27]} 59. Rg8+ {[%clk 0:00:04]}  Kf3 {[%clk 0:00:28]} 60. c4 {[%clk 0:00:03]}  Re4 {[%clk 0:00:23]} 61. Kd3 {[%clk 0:00:03]}  Rg4 {[%clk 0:00:23]} 0-1


[Site "https://www.chess.com"]

[Event "Titled Tuesday Blitz January 31 Late 2023"]
[White "Jaracz, Pawel"]
[Black "Lopez Del Alamo, Antonio"]
[WhiteFideId "1102222"]
[BlackFideId "2227339"]
[WhiteElo "2467"]
[BlackElo "2280"]
[Result "1-0"]
[Round "02"]
[TimeControl "180+2"]
[Date "2023.01.31"]
[WhiteClock "0:01:25"]
[BlackClock "0:01:13"]

1. d4 {[%clk 0:03:00]}  Nf6 {[%clk 0:02:57]} 2. c4 {[%clk 0:03:00]}  g6 {[%clk 0:02:53]} 3. Nc3 {[%clk 0:03:00]}  Bg7 {[%clk 0:02:52]} 4. e4 {[%clk 0:03:00]}  d6 {[%clk 0:02:52]} 5. f4 {[%clk 0:02:59]}  O-O {[%clk 0:02:53]} 6. Nf3 {[%clk 0:02:59]}  Na6 {[%clk 0:02:53]} 7. e5 {[%clk 0:02:57]}  Nd7 {[%clk 0:02:52]} 8. e6 {[%clk 0:02:47]}  fxe6 {[%clk 0:02:49]} 9. Ng5 {[%clk 0:02:47]}  Nf6 {[%clk 0:02:47]} 10. Qe2 {[%clk 0:02:47]}  Qd7 {[%clk 0:02:42]} 11. g3 {[%clk 0:02:33]}  h6 {[%clk 0:02:40]} 12. Nf3 {[%clk 0:02:32]}  c5 {[%clk 0:02:32]} 13. Bh3 {[%clk 0:02:31]}  Qc6 {[%clk 0:02:19]} 14. Bxe6+ {[%clk 0:02:18]}  Bxe6 {[%clk 0:02:19]} 15. Qxe6+ {[%clk 0:02:18]}  Kh7 {[%clk 0:02:19]} 16. d5 {[%clk 0:02:19]}  Qd7 {[%clk 0:02:15]} 17. Qxd7 {[%clk 0:02:16]}  Nxd7 {[%clk 0:02:16]} 18. O-O {[%clk 0:02:14]}  Nb6 {[%clk 0:02:06]} 19. Nd2 {[%clk 0:02:07]}  Bxc3 {[%clk 0:01:58]} 20. bxc3 {[%clk 0:02:07]}  Na4 {[%clk 0:01:59]} 21. Rb1 {[%clk 0:02:00]}  Rab8 {[%clk 0:01:49]} 22. Re1 {[%clk 0:01:56]}  Rf7 {[%clk 0:01:47]} 23. Re3 {[%clk 0:01:49]}  g5 {[%clk 0:01:32]} 24. fxg5 {[%clk 0:01:42]}  hxg5 {[%clk 0:01:33]} 25. Nf3 {[%clk 0:01:40]}  Rg7 {[%clk 0:01:26]} 26. Bd2 {[%clk 0:01:36]}  Nb6 {[%clk 0:01:25]} 27. Re4 {[%clk 0:01:35]}  g4 {[%clk 0:01:20]} 28. Ng5+ {[%clk 0:01:33]}  Kg6 {[%clk 0:01:17]} 29. Rxg4 {[%clk 0:01:30]}  Kh5 {[%clk 0:01:16]} 30. Rh4+ {[%clk 0:01:25]}  Kg6 {[%clk 0:01:15]} 31. Re1 {[%clk 0:01:26]}  Nxc4 {[%clk 0:01:13]} 32. Rxc4 {[%clk 0:01:25]} 1-0


[Site "https://www.chess.com"]

[Event "Titled Tuesday Blitz January 31 Late 2023"]
[White "Khoroshev, Nikita"]
[Black "Garrido, Denis"]
[WhiteFideId "14200287"]
[BlackFideId "601217"]
[WhiteElo "2336"]
[BlackElo "2205"]
[Result "0-1"]
[Round "02"]
[TimeControl "180+2"]
[Date "2023.01.31"]
[WhiteClock "0:01:28"]
[BlackClock "0:01:31"]

1. e4 {[%clk 0:03:00]}  e5 {[%clk 0:03:00]} 2. Nf3 {[%clk 0:02:58]}  Nc6 {[%clk 0:03:00]} 3. Bb5 {[%clk 0:02:58]}  a6 {[%clk 0:03:00]} 4. Ba4 {[%clk 0:02:58]}  Nf6 {[%clk 0:03:00]} 5. Bxc6 {[%clk 0:02:59]}  dxc6 {[%clk 0:03:00]} 6. d3 {[%clk 0:03:00]}  Bd6 {[%clk 0:03:00]} 7. Nbd2 {[%clk 0:02:59]}  O-O {[%clk 0:02:57]} 8. Nc4 {[%clk 0:02:59]}  Nd7 {[%clk 0:02:56]} 9. a4 {[%clk 0:02:58]}  Re8 {[%clk 0:02:56]} 10. Be3 {[%clk 0:02:57]}  a5 {[%clk 0:02:50]} 11. O-O {[%clk 0:02:55]}  Nf8 {[%clk 0:02:48]} 12. d4 {[%clk 0:02:43]}  exd4 {[%clk 0:02:48]} 13. Nxd6 {[%clk 0:02:41]}  Qxd6 {[%clk 0:02:29]} 14. Bxd4 {[%clk 0:02:31]}  Bg4 {[%clk 0:02:21]} 15. Re1 {[%clk 0:02:24]}  Bxf3 {[%clk 0:02:16]} 16. gxf3 {[%clk 0:02:23]}  Rad8 {[%clk 0:02:16]} 17. c3 {[%clk 0:02:04]}  c5 {[%clk 0:02:14]} 18. Bxc5 {[%clk 0:01:59]}  Qg6+ {[%clk 0:02:08]} 19. Kf1 {[%clk 0:01:59]}  Rxd1 {[%clk 0:02:08]} 20. Rexd1 {[%clk 0:02:00]}  Ne6 {[%clk 0:02:03]} 21. Be3 {[%clk 0:02:00]}  Qh5 {[%clk 0:02:01]} 22. Kg2 {[%clk 0:02:00]}  Ng5 {[%clk 0:02:01]} 23. Bxg5 {[%clk 0:01:58]}  Qxg5+ {[%clk 0:02:01]} 24. Kf1 {[%clk 0:01:57]}  Qf4 {[%clk 0:02:00]} 25. Kg2 {[%clk 0:01:55]}  h5 {[%clk 0:01:59]} 26. Rd5 {[%clk 0:01:55]}  Re6 {[%clk 0:01:56]} 27. Rf5 {[%clk 0:01:53]}  Rg6+ {[%clk 0:01:55]} 28. Kh1 {[%clk 0:01:47]}  Qd2 {[%clk 0:01:55]} 29. Rf1 {[%clk 0:01:38]}  h4 {[%clk 0:01:51]} 30. h3 {[%clk 0:01:38]}  Qxb2 {[%clk 0:01:51]} 31. Rxa5 {[%clk 0:01:37]}  Qxc3 {[%clk 0:01:50]} 32. Rf5 {[%clk 0:01:36]}  b6 {[%clk 0:01:46]} 33. Rd1 {[%clk 0:01:35]}  Rd6 {[%clk 0:01:43]} 34. Rg1 {[%clk 0:01:34]}  Qd2 {[%clk 0:01:37]} 35. Kg2 {[%clk 0:01:30]}  Rg6+ {[%clk 0:01:37]} 36. Kh1 {[%clk 0:01:28]}  Qxf2 {[%clk 0:01:33]} 37. Rg4 {[%clk 0:01:28]}  Qf1+ {[%clk 0:01:31]} 38. Kh2 {[%clk 0:01:27]}  Qf2+ {[%clk 0:01:30]} 39. Kh1 {[%clk 0:01:28]}  Qe1+ {[%clk 0:01:31]} 40. Kg2 {[%clk 0:01:28]}  Qd2+ {[%clk 0:01:31]} 41. Kh1 {[%clk 0:01:28]}  Qd1+ {[%clk 0:01:31]} 42. Kh2 {[%clk 0:01:28]}  Qxa4 {[%clk 0:01:31]} 0-1


[Site "https://www.chess.com"]

[Event "Titled Tuesday Blitz January 31 Late 2023"]
[White "Oganian, Miran"]
[Black "Kohler, Aran"]
[WhiteFideId "4122488"]
[BlackFideId "1002856"]
[WhiteElo "2439"]
[BlackElo "2010"]
[Result "1-0"]
[Round "02"]
[TimeControl "180+2"]
[Date "2023.01.31"]
[WhiteClock "0:01:04"]
[BlackClock "0:00:10"]

1. e4 {[%clk 0:03:00]}  c6 {[%clk 0:03:00]} 2. d4 {[%clk 0:02:48]}  d5 {[%clk 0:03:00]} 3. f3 {[%clk 0:02:48]}  Na6 {[%clk 0:02:57]} 4. Nc3 {[%clk 0:02:48]}  Nc7 {[%clk 0:02:57]} 5. Be3 {[%clk 0:02:47]}  e6 {[%clk 0:02:53]} 6. Bd3 {[%clk 0:02:47]}  Nf6 {[%clk 0:02:51]} 7. Nge2 {[%clk 0:02:47]}  Be7 {[%clk 0:02:48]} 8. O-O {[%clk 0:02:47]}  b6 {[%clk 0:02:44]} 9. Kh1 {[%clk 0:02:47]}  Bb7 {[%clk 0:02:43]} 10. e5 {[%clk 0:02:47]}  Nd7 {[%clk 0:02:42]} 11. f4 {[%clk 0:02:47]}  g6 {[%clk 0:02:42]} 12. g4 {[%clk 0:02:43]}  f5 {[%clk 0:02:26]} 13. exf6 {[%clk 0:02:40]}  Bxf6 {[%clk 0:02:26]} 14. f5 {[%clk 0:02:40]}  gxf5 {[%clk 0:01:59]} 15. gxf5 {[%clk 0:02:41]}  e5 {[%clk 0:01:59]} 16. Nf4 {[%clk 0:02:33]}  Qe7 {[%clk 0:01:40]} 17. Ne6 {[%clk 0:02:32]}  Nxe6 {[%clk 0:01:26]} 18. fxe6 {[%clk 0:02:33]}  Nf8 {[%clk 0:01:26]} 19. dxe5 {[%clk 0:02:31]}  d4 {[%clk 0:00:55]} 20. exf6 {[%clk 0:02:28]}  Qxe6 {[%clk 0:00:51]} 21. Qh5+ {[%clk 0:02:25]}  Kd8 {[%clk 0:00:50]} 22. Be4 {[%clk 0:01:58]}  dxe3 {[%clk 0:00:46]} 23. Rad1+ {[%clk 0:01:57]}  Kc7 {[%clk 0:00:45]} 24. Qg5 {[%clk 0:01:52]}  Ng6 {[%clk 0:00:40]} 25. f7 {[%clk 0:01:41]}  Raf8 {[%clk 0:00:35]} 26. Rf6 {[%clk 0:01:38]}  Qe7 {[%clk 0:00:34]} 27. Rxg6 {[%clk 0:01:37]}  Qxg5 {[%clk 0:00:30]} 28. Rxg5 {[%clk 0:01:36]}  Rxf7 {[%clk 0:00:31]} 29. Re1 {[%clk 0:01:33]}  Re8 {[%clk 0:00:30]} 30. Rxe3 {[%clk 0:01:32]}  c5 {[%clk 0:00:30]} 31. Kg2 {[%clk 0:01:18]}  Rfe7 {[%clk 0:00:31]} 32. Rg4 {[%clk 0:01:18]}  a6 {[%clk 0:00:27]} 33. a4 {[%clk 0:01:15]}  h5 {[%clk 0:00:26]} 34. Rf4 {[%clk 0:01:14]}  b5 {[%clk 0:00:22]} 35. axb5 {[%clk 0:01:13]}  axb5 {[%clk 0:00:22]} 36. Kf2 {[%clk 0:01:14]}  b4 {[%clk 0:00:22]} 37. Bxb7 {[%clk 0:01:09]}  Kxb7 {[%clk 0:00:18]} 38. Rxe7+ {[%clk 0:01:07]}  Rxe7 {[%clk 0:00:16]} 39. Ne4 {[%clk 0:01:08]}  Rc7 {[%clk 0:00:13]} 40. Rf5 {[%clk 0:01:07]}  Kb6 {[%clk 0:00:13]} 41. Rxh5 {[%clk 0:01:07]}  c4 {[%clk 0:00:13]} 42. h4 {[%clk 0:01:07]}  Rf7+ {[%clk 0:00:11]} 43. Ke3 {[%clk 0:01:06]}  Re7 {[%clk 0:00:11]} 44. Rh6+ {[%clk 0:01:06]}  Kb5 {[%clk 0:00:11]} 45. h5 {[%clk 0:01:06]}  Ka4 {[%clk 0:00:11]} 46. Rg6 {[%clk 0:01:05]}  c3 {[%clk 0:00:11]} 47. bxc3 {[%clk 0:01:04]}  bxc3 {[%clk 0:00:10]} 48. h6 {[%clk 0:01:04]} 1-0


[Site "https://www.chess.com"]

[Event "Titled Tuesday Blitz January 31 Late 2023"]
[White "Richterova, Natasa"]
[Black "Wieczorek, Oskar"]
[WhiteFideId "350591"]
[BlackFideId "1133950"]
[WhiteElo "2191"]
[BlackElo "2512"]
[Result "0-1"]
[Round "02"]
[TimeControl "180+2"]
[Date "2023.01.31"]
[WhiteClock "0:00:15"]
[BlackClock "0:00:06"]

1. e4 {[%clk 0:03:00]}  c5 {[%clk 0:02:59]} 2. Nf3 {[%clk 0:02:57]}  e6 {[%clk 0:03:00]} 3. c4 {[%clk 0:02:56]}  Nc6 {[%clk 0:02:58]} 4. Nc3 {[%clk 0:02:55]}  Nf6 {[%clk 0:02:55]} 5. Be2 {[%clk 0:02:55]}  Qb6 {[%clk 0:02:50]} 6. h3 {[%clk 0:02:44]}  d6 {[%clk 0:02:47]} 7. O-O {[%clk 0:02:43]}  Be7 {[%clk 0:02:46]} 8. b3 {[%clk 0:02:41]}  Nd4 {[%clk 0:02:40]} 9. Na4 {[%clk 0:02:38]}  Qc7 {[%clk 0:02:35]} 10. Nxd4 {[%clk 0:02:34]}  cxd4 {[%clk 0:02:35]} 11. d3 {[%clk 0:02:32]}  e5 {[%clk 0:02:35]} 12. f4 {[%clk 0:02:32]}  O-O {[%clk 0:02:26]} 13. Nb2 {[%clk 0:02:28]}  b5 {[%clk 0:02:15]} 14. cxb5 {[%clk 0:02:19]}  a6 {[%clk 0:01:56]} 15. fxe5 {[%clk 0:02:09]}  dxe5 {[%clk 0:01:56]} 16. bxa6 {[%clk 0:01:40]}  Bxa6 {[%clk 0:01:57]} 17. Bd2 {[%clk 0:01:33]}  Ba3 {[%clk 0:01:45]} 18. Nc4 {[%clk 0:01:28]}  Bxc4 {[%clk 0:01:44]} 19. bxc4 {[%clk 0:01:29]}  Nd7 {[%clk 0:01:38]} 20. Qe1 {[%clk 0:01:22]}  Bb2 {[%clk 0:01:34]} 21. Qg3 {[%clk 0:00:59]}  f6 {[%clk 0:01:19]} 22. Rab1 {[%clk 0:00:50]}  Rxa2 {[%clk 0:01:18]} 23. Bg4 {[%clk 0:00:46]}  Nc5 {[%clk 0:01:15]} 24. Bb4 {[%clk 0:00:32]}  Kh8 {[%clk 0:01:00]} 25. Qh4 {[%clk 0:00:20]}  Bc3 {[%clk 0:00:07]} 26. Bxc5 {[%clk 0:00:19]}  Qxc5 {[%clk 0:00:08]} 27. Bf5 {[%clk 0:00:19]}  h6 {[%clk 0:00:08]} 28. Qh5 {[%clk 0:00:19]}  Qd6 {[%clk 0:00:03]} 29. Qg6 {[%clk 0:00:19]}  Kg8 {[%clk 0:00:04]} 30. Qh7+ {[%clk 0:00:19]}  Kf7 {[%clk 0:00:04]} 31. Bg6+ {[%clk 0:00:19]}  Ke7 {[%clk 0:00:03]} 32. Qxg7+ {[%clk 0:00:20]}  Kd8 {[%clk 0:00:04]} 33. Bf5 {[%clk 0:00:19]}  Rb2 {[%clk 0:00:03]} 34. Rxb2 {[%clk 0:00:19]}  Bxb2 {[%clk 0:00:04]} 35. Rb1 {[%clk 0:00:19]}  Bc3 {[%clk 0:00:03]} 36. Rb8+ {[%clk 0:00:19]}  Qxb8 {[%clk 0:00:03]} 37. Qxf8+ {[%clk 0:00:20]}  Kc7 {[%clk 0:00:03]} 38. Qc5+ {[%clk 0:00:20]}  Kd8 {[%clk 0:00:03]} 39. Qd5+ {[%clk 0:00:19]}  Kc7 {[%clk 0:00:03]} 40. Qf7+ {[%clk 0:00:18]}  Kd6 {[%clk 0:00:01]} 41. Qxf6+ {[%clk 0:00:18]}  Kc5 {[%clk 0:00:01]} 42. Qe7+ {[%clk 0:00:18]}  Kb6 {[%clk 0:00:02]} 43. Qe6+ {[%clk 0:00:17]}  Ka5 {[%clk 0:00:02]} 44. Qd5+ {[%clk 0:00:16]}  Ka4 {[%clk 0:00:02]} 45. Qc6+ {[%clk 0:00:16]}  Ka3 {[%clk 0:00:02]} 46. Kh2 {[%clk 0:00:15]}  Bd2 {[%clk 0:00:02]} 47. Be6 {[%clk 0:00:15]}  Bf4+ {[%clk 0:00:02]} 48. g3 {[%clk 0:00:14]}  Qb2+ {[%clk 0:00:03]} 49. Kg1 {[%clk 0:00:15]}  Qc1+ {[%clk 0:00:03]} 50. Kg2 {[%clk 0:00:15]}  Qd2+ {[%clk 0:00:03]} 51. Kg1 {[%clk 0:00:15]}  Qe1+ {[%clk 0:00:04]} 52. Kg2 {[%clk 0:00:16]}  Qe2+ {[%clk 0:00:04]} 53. Kg1 {[%clk 0:00:16]}  Be3+ {[%clk 0:00:05]} 54. Kh1 {[%clk 0:00:16]}  Qf1+ {[%clk 0:00:05]} 55. Kh2 {[%clk 0:00:15]}  Qg1# {[%clk 0:00:06]} 0-1


[Site "https://www.chess.com"]

[Event "Titled Tuesday Blitz January 31 Late 2023"]
[White "Dourerassou, Jonathan"]
[Black "Sohier, Julien"]
[WhiteFideId "628050"]
[BlackFideId "645346"]
[WhiteElo "2414"]
[BlackElo "2214"]
[Result "0-1"]
[Round "02"]
[TimeControl "180+2"]
[Date "2023.01.31"]
[WhiteClock "0:00:25"]
[BlackClock "0:00:19"]

1. d4 {[%clk 0:02:55]}  d5 {[%clk 0:02:59]} 2. Nf3 {[%clk 0:02:53]}  Nf6 {[%clk 0:02:59]} 3. Bg5 {[%clk 0:02:52]}  Ne4 {[%clk 0:02:58]} 4. Bh4 {[%clk 0:02:51]}  c5 {[%clk 0:02:58]} 5. e3 {[%clk 0:02:48]}  Qb6 {[%clk 0:02:59]} 6. Qc1 {[%clk 0:02:47]}  cxd4 {[%clk 0:02:29]} 7. exd4 {[%clk 0:02:46]}  Nc6 {[%clk 0:02:28]} 8. c3 {[%clk 0:02:45]}  Bf5 {[%clk 0:02:26]} 9. Nbd2 {[%clk 0:02:44]}  e6 {[%clk 0:02:24]} 10. Bg3 {[%clk 0:02:43]}  Be7 {[%clk 0:02:19]} 11. Be2 {[%clk 0:02:42]}  O-O {[%clk 0:02:18]} 12. O-O {[%clk 0:02:41]}  Nxg3 {[%clk 0:02:17]} 13. hxg3 {[%clk 0:02:39]}  Rac8 {[%clk 0:02:16]} 14. Re1 {[%clk 0:02:35]}  h6 {[%clk 0:02:13]} 15. Nf1 {[%clk 0:02:21]}  Nb4 {[%clk 0:02:05]} 16. Ne3 {[%clk 0:02:17]}  Nd3 {[%clk 0:02:01]} 17. Nxf5 {[%clk 0:02:14]}  Nxc1 {[%clk 0:01:59]} 18. Nxe7+ {[%clk 0:02:14]}  Kh8 {[%clk 0:02:00]} 19. Nxc8 {[%clk 0:01:37]}  Nxe2+ {[%clk 0:01:59]} 20. Rxe2 {[%clk 0:01:37]}  Rxc8 {[%clk 0:02:00]} 21. Ne5 {[%clk 0:01:38]}  Kg8 {[%clk 0:01:55]} 22. Rae1 {[%clk 0:01:37]}  Qa5 {[%clk 0:01:46]} 23. a3 {[%clk 0:01:36]}  b5 {[%clk 0:01:43]} 24. Nd3 {[%clk 0:01:33]}  Qd8 {[%clk 0:01:40]} 25. g4 {[%clk 0:01:32]}  a5 {[%clk 0:01:39]} 26. g3 {[%clk 0:01:27]}  Qg5 {[%clk 0:01:38]} 27. f3 {[%clk 0:01:25]}  h5 {[%clk 0:01:31]} 28. Ne5 {[%clk 0:01:07]}  hxg4 {[%clk 0:01:26]} 29. f4 {[%clk 0:00:53]}  Qf5 {[%clk 0:01:19]} 30. Nd7 {[%clk 0:00:52]}  Qd3 {[%clk 0:01:10]} 31. Re3 {[%clk 0:00:47]}  Qc2 {[%clk 0:01:06]} 32. R1e2 {[%clk 0:00:46]}  Qb1+ {[%clk 0:01:04]} 33. Kg2 {[%clk 0:00:46]}  b4 {[%clk 0:01:02]} 34. axb4 {[%clk 0:00:44]}  axb4 {[%clk 0:01:02]} 35. Ne5 {[%clk 0:00:43]}  bxc3 {[%clk 0:00:58]} 36. bxc3 {[%clk 0:00:44]}  Rb8 {[%clk 0:00:56]} 37. Nxg4 {[%clk 0:00:44]}  Rb2 {[%clk 0:00:56]} 38. Nf2 {[%clk 0:00:42]}  Rxe2 {[%clk 0:00:56]} 39. Rxe2 {[%clk 0:00:43]}  Qc1 {[%clk 0:00:54]} 40. f5 {[%clk 0:00:37]}  exf5 {[%clk 0:00:52]} 41. Re5 {[%clk 0:00:37]}  Qxc3 {[%clk 0:00:49]} 42. Rxf5 {[%clk 0:00:37]}  g6 {[%clk 0:00:49]} 43. Rf4 {[%clk 0:00:36]}  Kg7 {[%clk 0:00:48]} 44. g4 {[%clk 0:00:35]}  f6 {[%clk 0:00:44]} 45. Nh3 {[%clk 0:00:34]}  g5 {[%clk 0:00:42]} 46. Rf2 {[%clk 0:00:32]}  Qxd4 {[%clk 0:00:42]} 47. Kg3 {[%clk 0:00:32]}  Qe3+ {[%clk 0:00:41]} 48. Rf3 {[%clk 0:00:32]}  Qe1+ {[%clk 0:00:41]} 49. Kg2 {[%clk 0:00:31]}  d4 {[%clk 0:00:41]} 50. Nf2 {[%clk 0:00:32]}  Qe2 {[%clk 0:00:39]} 51. Rd3 {[%clk 0:00:31]}  Qe5 {[%clk 0:00:37]} 52. Kf3 {[%clk 0:00:30]}  Kf7 {[%clk 0:00:35]} 53. Kg2 {[%clk 0:00:30]}  Ke6 {[%clk 0:00:34]} 54. Ra3 {[%clk 0:00:28]}  Qb5 {[%clk 0:00:27]} 55. Rd3 {[%clk 0:00:28]}  Ke5 {[%clk 0:00:26]} 56. Rf3 {[%clk 0:00:28]}  Qe2 {[%clk 0:00:21]} 57. Kg3 {[%clk 0:00:26]}  Ke6 {[%clk 0:00:19]} 58. Nd3 {[%clk 0:00:25]}  Kd5 {[%clk 0:00:18]} 59. Nf2 {[%clk 0:00:22]}  Kc4 {[%clk 0:00:18]} 60. Rxf6 {[%clk 0:00:22]}  Qe5+ {[%clk 0:00:17]} 61. Kg2 {[%clk 0:00:19]}  Qxf6 {[%clk 0:00:17]} 62. Ne4 {[%clk 0:00:20]}  Qc6 {[%clk 0:00:16]} 63. Kf3 {[%clk 0:00:21]}  Kd3 {[%clk 0:00:16]} 64. Kg3 {[%clk 0:00:22]}  Qxe4 {[%clk 0:00:16]} 65. Kh3 {[%clk 0:00:22]}  Qf3+ {[%clk 0:00:16]} 66. Kh2 {[%clk 0:00:23]}  Qxg4 {[%clk 0:00:17]} 67. Kh1 {[%clk 0:00:24]}  Ke3 {[%clk 0:00:18]} 68. Kh2 {[%clk 0:00:25]}  Kf2 {[%clk 0:00:19]} 69. Kh1 {[%clk 0:00:25]}  Qg2# {[%clk 0:00:19]} 0-1


[Site "https://www.chess.com"]